bitfinex/quotes_ETHUSD_20240621
["timestamp","ask_amount","ask_price","bid_price","bid_amount"]
[1718971952230,0.4950204,3499.0,3498.6,0.01571422]
[1718971952442,0.23626,3499.3,3498.6,0.01571422]
[1718971952443,0.4950204,3499.2,3498.6,0.01571422]
[1718971952733,0.4950204,3499.1,3498.6,0.01571422]
[1718971952933,0.4950204,3499.0,3498.6,0.01571422]
[1718971953170,0.23626,3499.3,3498.6,0.01571422]
[1718971953171,0.4950204,3498.9,3498.6,0.01571422]
[1718971953530,0.4950204,3498.8,3498.6,0.01571422]
[1718971953869,0.4950204,3498.7,3498.6,0.01571422]
[1718971954163,0.49498579,3498.7,3498.6,0.01571422]
[1718971954373,0.49498579,3499.1,3498.6,0.01571422]
[1718971954575,0.49498579,3499.0,3498.6,0.01571422]
[1718971954780,0.49498579,3498.9,3498.6,0.01571422]
[1718971954979,0.49498579,3498.8,3498.6,0.01571422]
[1718971955142,0.49498579,3498.7,3498.6,0.01571422]
[1718971955581,0.49498579,3499.1,3498.6,0.01571422]
[1718971955758,0.49498579,3499.0,3498.6,0.01571422]
[1718971955954,0.49498579,3498.9,3498.6,0.01571422]
[1718971956144,0.49498579,3498.8,3498.6,0.01571422]
[1718971956345,0.49500356,3498.7,3498.6,0.01571422]
[1718971956746,0.49500356,3499.2,3498.6,0.01571422]
[1718971956964,0.49500356,3499.1,3498.6,0.01571422]
[1718971957174,0.49500356,3499.0,3498.6,0.01571422]
[1718971957492,0.49500356,3498.9,3498.6,0.01571422]
[1718971957646,0.49500356,3498.8,3498.6,0.01571422]
[1718971957846,0.49500356,3498.7,3498.6,0.01571422]
[1718971960186,2.88122674,3498.7,3498.6,0.01571422]
[1718971961405,2.3862,3498.7,3498.6,0.01571422]
[1718971961697,2.88127119,3498.7,3498.6,0.01571422]
[1718971962395,3.16939831,3498.7,3498.6,0.01571422]
[1718971963271,2.67432712,3498.7,3498.6,0.01571422]
[1718971963481,3.16943696,3498.7,3498.6,0.01571422]
[1718971963802,0.49510984,3498.7,3498.6,0.01571422]
[1718971964303,0.49510984,3499.0,3498.6,0.01571422]
[1718971964458,2.2813,3498.8,3498.6,0.01571422]
[1718971964654,0.49510984,3498.7,3498.6,0.01571422]
[1718971966400,2.2813,3499.5,3498.6,0.01571422]
[1718971966701,0.49499997,3499.4,3498.6,0.07278453]
[1718971966874,0.49499997,3499.3,3498.6,0.07278453]
[1718971967069,0.49499997,3499.2,3498.6,0.07278453]
[1718971967300,0.49499997,3499.1,3498.6,0.07278453]
[1718971967459,0.49499997,3499.0,3498.6,0.07278453]
[1718971967659,0.49499997,3498.9,3498.6,0.07278453]
[1718971967898,0.49499997,3498.8,3498.6,0.01571422]
[1718971968120,0.49499997,3498.7,3498.6,0.01571422]
[1718971969472,0.250943,3499.4,3498.6,0.01571422]
[1718971969667,2.57392441,3499.3,3498.6,0.01571422]
[1718971969906,0.49499088,3499.2,3498.6,0.01571422]
[1718971970069,0.49499088,3499.1,3498.6,0.01571422]
[1718971970272,0.49499088,3499.0,3498.6,0.01571422]
[1718971970497,0.49499088,3499.3,3498.6,0.01571422]
[1718971970695,2.57395128,3499.2,3498.6,0.01571422]
[1718971971014,0.49499088,3499.1,3498.6,0.01571422]
[1718971971211,0.49499088,3499.0,3498.6,0.01571422]
[1718971971423,0.49499088,3498.9,3498.6,0.01571422]
[1718971971777,0.49499088,3498.8,3498.6,0.01571422]
[1718971971976,0.49499088,3499.4,3498.6,0.01571422]
[1718971972289,2.57397437,3499.3,3498.6,0.01571422]
[1718971972625,2.57397437,3499.2,3498.6,0.01571422]
[1718971972922,2.57394926,3499.1,3498.6,0.01571422]
[1718971973081,2.57394926,3499.0,3498.6,0.01571422]
[1718971973279,0.49499024,3498.9,3498.6,0.01571422]
[1718971973527,0.49499024,3498.8,3498.6,0.01571422]
[1718971973822,0.49499024,3499.3,3498.6,2.31071422]
[1718971973989,0.49499024,3499.2,3498.9,2.102]
[1718971974174,3.0,3500.8,3498.6,0.01571422]
[1718971974175,0.49499024,3499.1,3498.6,0.01571422]
[1718971974378,2.102,3500.2,3498.6,0.01571422]
[1718971974379,5.05155227,3499.0,3498.6,0.01571422]
[1718971974615,2.57405227,3498.9,3498.6,0.01571422]
[1718971974811,2.57405227,3498.8,3498.6,0.01571422]
[1718971975043,0.49499024,3498.7,3498.6,0.01571422]
[1718971975838,0.49503673,3498.7,3498.6,0.01571422]
[1718971976920,0.49503673,3499.3,3498.6,0.01571422]
[1718971977136,2.57402111,3499.2,3498.6,0.01571422]
[1718971977288,0.49503673,3499.1,3498.6,0.01571422]
[1718971977484,0.49503673,3499.0,3498.6,0.01571422]
[1718971977684,0.49503673,3498.9,3498.6,0.01571422]
[1718971978007,0.49503673,3498.8,3498.6,0.01571422]
[1718971978196,0.49503673,3498.7,3498.6,0.01571422]
[1718971978391,0.49503673,3498.7,3498.6,2.11771422]
[1718971978615,2.4467,3499.7,3498.6,3.33284564]
[1718971978909,2.57376071,3499.6,3498.7,0.55]
[1718971979118,2.57371845,3499.5,3498.7,0.55]
[1718971979434,2.57371845,3499.4,3498.7,0.55]
[1718971979622,0.49493413,3499.3,3498.7,0.55]
[1718971979829,0.49493413,3499.2,3499.0,2.102]
[1718971979996,0.49493413,3499.9,3499.1,2.9751]
[1718971980192,0.49487212,3499.8,3499.5,2.102]
[1718971980543,2.4026,3500.6,3499.5,2.102]
[1718971980544,0.49487212,3499.7,3499.5,2.102]
[1718971980751,0.49487212,3499.6,3499.5,2.102]
[1718971981029,0.24026,3500.5,3499.5,2.102]
[1718971981244,2.07839301,3500.4,3499.5,2.102]
[1718971981442,2.07839301,3500.4,3499.6,0.55]
[1718971981443,2.57325803,3500.4,3499.6,0.55]
[1718971981728,1.36514558,3499.7,3499.6,2.652]
[1718971982292,1.36514558,3499.7,3499.6,2.9172]
[1718971982293,0.49486502,3499.7,3499.6,2.9172]
[1718971982548,0.49480192,3499.7,3499.6,2.9172]
[1718971982848,1.36514558,3499.8,3499.6,2.9172]
[1718971982989,3.0,3501.4,3499.6,2.102]
[1718971982990,0.49481113,3499.7,3499.6,2.102]
[1718971983345,0.49481113,3499.7,3499.0,6.54799272]
[1718971983488,1.36515564,3499.3,3499.0,7.37439199]
[1718971983817,0.49481113,3499.2,3499.0,6.54799272]
[1718971984019,1.36518229,3499.3,3499.0,6.54799272]
[1718971984217,1.36518229,3499.4,3499.2,2.102]
[1718971984449,1.36518229,3499.5,3499.2,5.102]
[1718971984774,2.3445,3500.6,3499.2,5.102]
[1718971984775,1.36518229,3499.7,3499.3,0.55]
[1718971984932,1.36518229,3499.8,3499.7,2.102]
[1718971985138,1.36518229,3499.9,3499.8,0.55]
[1718971985335,1.36518229,3500.1,3499.8,0.55]
[1718971985547,1.36518229,3500.2,3499.9,2.3817]
[1718971985862,1.85995695,3500.1,3499.9,2.3817]
[1718971986064,1.36518229,3500.2,3499.9,2.3817]
[1718971986426,0.24075,3501.0,3499.9,2.3817]
[1718971986427,1.36518229,3500.3,3499.9,2.3817]
[1718971986766,1.36518229,3500.5,3500.1,2.102]
[1718971986973,3.23171219,3502.6,3500.1,2.102]
[1718971986974,1.36518229,3500.7,3500.1,2.39063071]
[1718971987261,2.4861,3501.5,3499.9,7.4837]
[1718971987262,1.36588101,3500.5,3499.9,7.4837]
[1718971987434,3.01,3502.2,3499.6,6.54799272]
[1718971987435,2.2648,3500.8,3499.6,6.54799272]
[1718971987767,3.86489336,3500.1,3499.6,6.54799272]
[1718971988162,1.36559336,3499.8,3499.6,6.54799272]
[1718971989025,2.4993,3500.1,3499.6,6.54799272]
[1718971989250,0.24993,3500.0,3499.6,6.54799272]
[1718971989423,0.49493337,3499.7,3499.6,6.54799272]
[1718971989620,0.49493337,3499.7,3498.8,19.84]
[1718971989864,0.49493337,3499.7,3498.9,3.0]
[1718971990166,0.49493337,3499.7,3499.1,2.102]
[1718971990321,0.49493337,3499.7,3499.2,0.2102]
[1718971991057,0.49493337,3499.7,3499.3,0.55]
[1718971991422,0.49493337,3499.7,3499.3,2.8294]
[1718971991721,0.49493337,3499.7,3499.5,2.102]
[1718971992163,0.49493337,3499.7,3499.1,2.102]
[1718971992936,0.49493337,3499.7,3499.1,2.6122]
[1718971993160,0.49493337,3499.7,3499.5,2.102]
[1718971993623,5.2848,3500.9,3499.5,2.102]
[1718971993822,2.2848,3500.9,3499.9,2.102]
[1718971996428,2.2848,3500.9,3500.0,0.55]
[1718971996738,1.3654335,3500.5,3500.0,0.55]
[1718971996946,0.49476862,3500.4,3499.6,2.102]
[1718971997282,1.3654335,3500.2,3499.6,2.102]
[1718971997430,0.49476862,3500.4,3499.5,6.54799272]
[1718971997431,1.3654335,3499.9,3499.5,6.54799272]
[1718971997627,1.86020212,3499.8,3499.1,5.6122]
[1718971997955,1.3654335,3499.6,3499.1,5.6122]
[1718971998525,1.3654335,3499.6,3499.0,6.54799272]
[1718971998778,1.86032626,3499.5,3499.0,6.54799272]
[1718971999076,1.86033566,3499.4,3499.0,6.54799272]
[1718971999221,1.3654335,3499.4,3499.0,6.54799272]
[1718971999622,1.86035557,3499.3,3499.0,6.54799272]
[1718971999856,1.36537381,3499.4,3499.0,6.54799272]
[1718972000061,0.49493354,3499.3,3499.0,6.54799272]
[1718972000360,1.36537381,3499.3,3499.0,6.54799272]
[1718972001574,1.36537381,3499.4,3499.0,6.54799272]
[1718972001723,0.49493354,3499.3,3499.0,6.54799272]
[1718972001927,0.49492377,3499.3,3499.0,6.54799272]
[1718972002244,1.86029758,3499.3,3499.0,6.54799272]
[1718972002439,1.36537381,3499.3,3499.0,6.54799272]
[1718972002634,0.49492456,3499.2,3499.0,6.54799272]
[1718972002835,0.49492456,3499.2,3498.8,2.102]
[1718972003056,0.29112686,3500.3,3498.9,1.06177142]
[1718972003269,1.36490939,3499.3,3498.9,10.60976414]
[1718972003452,0.29112686,3500.3,3498.9,4.06177142]
[1718972003453,2.2523,3499.6,3498.9,4.06177142]
[1718972003628,1.8598211,3499.2,3498.9,3.0]
[1718972003830,1.36489433,3499.0,3498.7,2.102]
[1718972004367,1.85980562,3498.9,3498.7,2.102]
[1718972004541,2.2523,3499.6,3498.6,0.01571422]
[1718972004542,1.364817,3498.8,3498.6,0.01571422]
[1718972004741,1.85975592,3498.7,3498.6,0.01571422]
[1718972004948,2.2523,3499.6,3498.6,0.01571422]
[1718972004949,0.72021862,3499.5,3498.6,0.01571422]
[1718972005150,2.57410557,3499.4,3498.6,0.01571422]
[1718972005487,2.57410557,3499.3,3498.6,0.01571422]
[1718972005783,4.82640557,3499.2,3498.6,0.01571422]
[1718972006095,2.57410557,3499.1,3498.6,0.01571422]
[1718972006374,2.57436917,3499.0,3498.6,0.01571422]
[1718972006669,0.49507102,3498.9,3498.6,0.01571422]
[1718972006831,0.49507102,3499.0,3498.6,0.01571422]
[1718972009273,0.22523,3499.1,3498.6,0.01571422]
[1718972009571,0.49505815,3498.9,3498.6,0.01571422]
[1718972009776,0.49505815,3498.8,3498.6,0.01571422]
[1718972009995,1.36478815,3498.7,3498.6,0.01571422]
[1718972010273,3.0,3499.8,3498.6,0.01571422]
[1718972010274,1.36478815,3498.8,3498.6,0.01571422]
[1718972010473,1.36478815,3498.9,3498.6,0.01571422]
[1718972011974,1.36478815,3498.9,3498.8,2.102]
[1718972012176,1.36478815,3499.2,3498.8,2.652]
[1718972012488,1.86020189,3499.1,3498.8,2.102]
[1718972012779,0.49496425,3499.9,3498.9,0.55]
[1718972013075,1.36521617,3499.1,3498.9,0.55]
[1718972013792,1.36532134,3499.2,3498.9,0.55]
[1718972013958,1.36532134,3499.1,3498.9,0.55]
[1718972015056,1.36532134,3499.2,3498.9,0.55]
[1718972015478,1.36532134,3499.1,3498.9,0.55]
[1718972015690,1.36537002,3499.1,3498.9,0.55]
[1718972016008,3.26381269,3500.0,3498.6,0.01571422]
[1718972016009,1.36537002,3499.0,3498.6,0.01571422]
[1718972016153,1.86027086,3498.9,3498.6,0.01571422]
[1718972016356,0.49495102,3498.8,3498.6,0.93728491]
[1718972016553,1.36531984,3498.9,3498.7,0.55]
[1718972016995,2.3053,3499.5,3498.6,0.01571422]
[1718972016996,1.86027086,3498.8,3498.6,0.01571422]
[1718972017160,2.3053,3499.5,3498.6,0.01571422]
[1718972017161,0.49495102,3498.7,3498.6,0.01571422]
[1718972017597,2.4201,3499.2,3498.6,0.01571422]
[1718972017761,2.5742589,3499.1,3498.6,0.01571422]
[1718972018107,2.5742589,3499.0,3498.6,0.01571422]
[1718972018332,2.5742589,3498.9,3498.6,0.01571422]
[1718972018626,3.0,3499.8,3498.6,0.01571422]
[1718972018627,2.57455667,3498.8,3498.6,0.01571422]
[1718972018810,2.57455667,3498.7,3498.6,0.01571422]
[1718972019011,2.55894426,3498.7,3497.6,9.54799272]
[1718972019225,1.36490398,3498.0,3497.6,9.54799272]
[1718972019522,1.36490398,3498.0,3497.5,2.102]
[1718972020303,1.36490398,3498.1,3497.5,2.102]
[1718972021331,1.36490398,3498.2,3497.5,2.102]
[1718972021514,1.36490398,3498.2,3497.6,0.60717231]
[1718972021719,1.36503622,3498.2,3497.7,0.27091723]
[1718972022086,2.4216,3499.0,3497.8,0.05717229]
[1718972022250,1.36506321,3498.2,3497.8,0.05717229]
[1718972022391,1.36506321,3498.2,3497.4,12.28]
[1718972022392,2.46157237,3498.1,3497.1,0.1209115]
[1718972022591,2.4044,3497.2,3497.1,0.1209115]
[1718972022791,2.89949335,3497.2,3497.1,0.0711757]
[1718972023034,3.18944269,3497.2,3497.1,0.0711757]
[1718972024241,3.18944269,3497.2,3494.7,8.14967547]
[1718972024242,5.27008962,3497.2,3494.7,8.14967547]
[1718972024538,1.36422668,3496.4,3494.8,1.716]
[1718972024732,1.85962169,3496.3,3495.0,1.716]
[1718972024903,1.36420502,3496.3,3495.0,1.716]
[1718972025310,1.36420502,3496.3,3494.9,1.25426755]
[1718972025622,1.36420502,3496.3,3494.8,1.716]
[1718972025945,1.36420502,3496.6,3494.8,1.716]
[1718972026145,1.8595993,3496.5,3494.8,1.716]
[1718972026452,1.36420502,3496.5,3494.8,1.716]
[1718972026604,2.69434934,3497.2,3495.3,1.716]
[1718972026605,1.36420502,3496.8,3495.3,1.716]
[1718972026938,1.36420502,3496.9,3495.4,2.3589]
[1718972027252,2.3274,3497.8,3495.5,1.716]
[1718972027253,1.36420502,3497.0,3495.5,1.716]
[1718972027407,1.85953971,3496.9,3495.7,1.716]
[1718972027594,3.0,3497.7,3495.7,4.716]
[1718972027789,2.3274,3497.8,3495.8,2.266]
[1718972027790,1.36428237,3496.8,3495.8,2.266]
[1718972028030,1.36428237,3496.8,3495.8,5.266]
[1718972028230,2.3274,3497.8,3495.8,5.266]
[1718972028231,1.36428237,3497.1,3496.2,1.716]
[1718972028455,1.36428237,3497.2,3496.4,1.716]
[1718972028602,1.85958508,3497.1,3496.5,0.55]
[1718972028799,1.36428237,3497.1,3496.5,0.55]
[1718972029495,1.36428237,3497.2,3496.5,0.55]
[1718972029736,1.36428237,3497.3,3496.6,2.018849]
[1718972029898,1.36428237,3497.4,3496.7,2.266]
[1718972030229,1.36428237,3497.4,3496.8,0.55]
[1718972030546,1.36428237,3497.5,3496.8,0.55]
[1718972030844,2.4112,3498.4,3496.9,0.2266]
[1718972030845,0.29064575,3498.2,3496.9,0.2266]
[1718972031161,1.36461466,3497.7,3497.0,0.79926]
[1718972031311,0.49522792,3497.6,3497.0,0.55]
[1718972031497,1.36461804,3497.6,3497.0,0.55]
[1718972032009,1.3638311,3497.6,3497.0,0.55]
[1718972032535,1.3638311,3497.6,3497.1,0.05718111]
[1718972033236,1.3638311,3497.5,3497.1,0.69060677]
[1718972033458,1.3638311,3497.2,3497.0,3.0]
[1718972033752,0.27018457,3498.1,3496.9,5.72707547]
[1718972033753,1.3638311,3497.3,3496.9,5.72707547]
[1718972033953,0.27018457,3498.1,3496.9,5.72707547]
[1718972034108,1.36374392,3497.2,3496.9,5.72707547]
[1718972034439,0.49527675,3497.1,3496.9,5.72707547]
[1718972034634,0.55244912,3498.0,3496.9,5.72707547]
[1718972034806,2.57548599,3497.9,3496.9,5.72707547]
[1718972035012,5.92294265,3497.8,3496.9,5.72707547]
[1718972035208,0.55244912,3497.7,3496.9,5.72707547]
[1718972035444,0.49527675,3497.6,3496.9,5.72707547]
[1718972035662,0.05717237,3497.5,3496.9,5.72707547]
[1718972035949,0.49527675,3497.4,3496.9,5.72707547]
[1718972036107,0.05717237,3497.3,3496.9,5.72707547]
[1718972036305,0.49527675,3497.2,3496.9,5.72707547]
[1718972036846,0.49527675,3497.1,3497.0,0.0250419]
[1718972037178,0.49534186,3497.1,3497.0,0.0250419]
[1718972037657,0.49534186,3497.1,3497.0,0.02645964]
[1718972037812,0.49534186,3497.9,3496.3,5.72707547]
[1718972038150,1.3638865,3496.8,3496.4,0.02645964]
[1718972038655,0.27018457,3498.1,3495.0,1.716]
[1718972038656,1.3638865,3496.6,3495.0,1.716]
[1718972038954,1.3638865,3496.6,3495.1,0.02577486]
[1718972038955,1.36350584,3495.7,3495.1,0.02577486]
[1718972039127,0.49534186,3495.6,3495.1,0.02577486]
[1718972039326,0.49534186,3495.6,3494.3,2.677]
[1718972039327,1.36350584,3495.7,3494.3,2.677]
[1718972039526,0.4955039,3495.6,3494.3,2.677]
[1718972039840,0.4955039,3495.6,3494.4,2.21755]
[1718972040049,0.36954589,3496.5,3494.4,2.21755]
[1718972040353,1.36360912,3495.6,3494.4,2.21755]
[1718972040650,0.49552336,3495.5,3494.6,1.716]
[1718972040829,1.36372271,3495.7,3494.8,1.716]
[1718972041017,1.85922055,3495.6,3494.9,0.55]
[1718972041349,1.85924252,3495.5,3494.9,0.55]
[1718972041551,1.85924252,3495.4,3493.7,2.4619]
[1718972041736,2.285,3495.5,3494.2,0.3]
[1718972041737,1.3637233,3495.2,3494.2,0.3]
[1718972042048,0.49551922,3495.3,3493.9,3.0]
[1718972042049,1.3637233,3495.3,3493.9,3.0]
[1718972042259,0.49557442,3495.2,3493.9,3.0]
[1718972042429,1.91610412,3495.2,3494.0,1.716]
[1718972042630,1.85893175,3495.1,3493.8,4.393]
[1718972042836,1.85893175,3495.1,3494.0,1.716]
[1718972042837,1.36335113,3495.1,3494.0,1.716]
[1718972043148,3.0,3496.1,3494.0,1.716]
[1718972043149,1.85895468,3495.0,3494.0,1.716]
[1718972043318,1.36335113,3495.1,3494.0,1.716]
[1718972043510,1.36335113,3495.1,3493.9,0.68549]
[1718972043511,1.36335113,3495.2,3494.2,1.716]
[1718972043716,1.85892012,3495.1,3494.2,1.716]
[1718972043938,1.36335113,3495.1,3494.2,1.716]
[1718972044144,1.36335113,3495.1,3494.3,0.55]
[1718972044359,0.49558763,3495.0,3494.3,0.55]
[1718972044540,0.49558763,3495.0,3494.3,1.09786098]
[1718972044764,1.36335113,3495.1,3494.3,1.09786098]
[1718972045275,0.49557975,3495.0,3494.3,1.09786098]
[1718972045472,1.36328289,3495.2,3494.3,1.09786098]
[1718972045633,1.36328289,3495.1,3494.3,1.09786098]
[1718972045828,1.36328289,3495.1,3494.5,2.4602]
[1718972046030,0.36954589,3496.5,3494.5,2.4602]
[1718972046031,1.36328289,3495.9,3495.0,1.716]
[1718972046269,0.49545025,3495.8,3495.2,1.716]
[1718972046487,1.36328289,3495.9,3495.2,1.716]
[1718972046770,0.49544078,3495.8,3495.4,1.716]
[1718972046975,1.36328289,3496.0,3495.4,1.716]
[1718972046976,0.49544078,3495.9,3495.5,0.55]
[1718972047132,1.36328289,3496.0,3495.5,0.55]
[1718972047336,1.85871347,3495.9,3495.5,0.55]
[1718972047645,0.49543366,3495.8,3495.5,0.55]
[1718972048087,0.49543366,3495.8,3495.6,0.24926]
[1718972048382,1.36328289,3496.0,3495.7,0.55]
[1718972048623,1.85860779,3495.9,3495.7,0.55]
[1718972048907,1.36332115,3495.9,3495.5,0.55]
[1718972050419,1.36332115,3496.2,3495.6,0.0571136]
[1718972050628,1.36332115,3496.2,3495.7,2.266]
[1718972050918,1.36332115,3496.2,3495.8,0.05711033]
[1718972051071,1.36332115,3496.2,3495.9,0.78231103]
[1718972051272,0.49535358,3496.1,3496.0,0.05720103]
[1718972051575,0.49535549,3496.1,3496.0,0.55]
[1718972051775,1.36328361,3496.2,3496.0,0.55]
[1718972051969,1.36328361,3496.2,3496.1,0.55]
[1718972052172,0.4953572,3497.2,3496.1,0.55]
[1718972052368,0.55252957,3497.1,3496.0,6.27707547]
[1718972052614,1.36338328,3496.2,3496.0,6.27707547]
[1718972052810,1.36338328,3496.2,3496.0,2.266]
[1718972053011,1.36338328,3496.4,3496.0,2.266]
[1718972053217,2.4278,3497.6,3496.0,2.266]
[1718972053218,1.36338328,3496.5,3496.0,2.266]
[1718972053423,2.4278,3497.6,3496.0,2.266]
[1718972053424,1.36338328,3496.6,3496.0,2.266]
[1718972053630,1.36338328,3496.6,3496.2,1.716]
[1718972053927,1.36338328,3496.4,3496.3,0.55]
[1718972054133,0.49528293,3496.4,3496.3,0.55]
[1718972054544,2.4278,3497.6,3496.3,0.55]
[1718972054705,0.49529522,3496.4,3496.3,6.27707547]
[1718972055020,0.49529522,3496.4,3496.3,0.55]
[1718972055221,1.36380521,3496.5,3496.3,0.55]
[1718972055853,1.36380521,3496.5,3496.1,0.55]
[1718972055995,1.85909862,3496.4,3496.0,0.55]
[1718972056196,0.24278,3497.5,3496.0,0.55]
[1718972056197,1.85909862,3496.3,3496.0,0.55]
[1718972056529,1.36380521,3496.4,3496.0,0.55]
[1718972056829,1.36380521,3496.4,3496.0,2.266]
[1718972057128,2.4278,3497.6,3496.0,2.266]
[1718972057129,1.36380521,3496.5,3496.0,2.266]
[1718972057441,1.36380521,3496.5,3496.1,2.44237]
[1718972057607,2.4278,3497.6,3496.3,1.716]
[1718972057935,2.4278,3497.6,3496.4,0.05718839]
[1718972057936,1.36384508,3496.8,3496.4,0.05718839]
[1718972058132,1.36387673,3496.8,3496.4,2.32318839]
[1718972058351,1.36387673,3496.8,3496.4,2.62814423]
[1718972058847,1.36386172,3496.9,3496.4,2.57095584]
[1718972059152,1.36386172,3496.9,3496.4,2.266]
[1718972059504,1.36386172,3497.0,3496.6,1.716]
[1718972059700,1.36386172,3497.2,3496.8,1.716]
[1718972059903,1.36386172,3497.1,3496.8,1.716]
[1718972060102,1.36386172,3497.1,3496.9,2.266]
[1718972060701,0.25403846,3498.0,3496.9,2.266]
[1718972060919,1.36397932,3497.1,3496.9,2.266]
[1718972061238,1.36397932,3497.2,3496.9,2.266]
[1718972061740,1.36397932,3497.3,3496.9,2.266]
[1718972062036,1.36397932,3497.2,3496.9,2.266]
[1718972062244,1.36397932,3497.3,3496.9,2.266]
[1718972062928,1.36397932,3497.3,3496.9,1.716]
[1718972063131,1.36397932,3497.3,3486.5,0.1209115]
[1718972063132,2.2952,3494.3,3493.2,0.3552704]
[1718972063331,2.2952,3494.3,3492.1,2.2876]
[1718972063332,1.36242862,3493.7,3492.1,2.2876]
[1718972063549,4.58162,3492.2,3492.1,2.2876]
[1718972063751,1.36233069,3493.4,3492.1,2.2876]
[1718972063918,1.36233069,3493.5,3492.2,2.62339203]
[1718972064119,0.29885911,3494.4,3492.2,4.86498021]
[1718972064361,0.49574809,3494.3,3492.2,2.62339203]
[1718972064533,1.36262637,3494.2,3492.2,4.91415203]
[1718972064733,0.29885911,3494.4,3492.3,2.29073]
[1718972065044,1.36262637,3494.3,3493.1,2.006]
[1718972065245,1.36262637,3494.3,3492.2,3.0]
[1718972065246,1.36262637,3494.1,3492.2,3.0]
[1718972065432,0.29885911,3494.4,3492.1,4.57845]
[1718972065433,1.66148548,3494.4,3492.1,4.57845]
[1718972065633,3.94028263,3494.3,3492.7,2.68]
[1718972065857,0.29885911,3494.4,3492.7,2.68]
[1718972065858,2.08195311,3494.2,3492.7,2.68]
[1718972066052,1.66148548,3494.4,3492.8,3.0]
[1718972066368,2.57758298,3494.3,3492.8,3.0]
[1718972066584,0.29885911,3494.4,3492.9,0.568]
[1718972066742,2.08189448,3494.3,3492.9,0.568]
[1718972066934,1.6615134,3494.4,3492.9,0.568]
[1718972066935,0.29885911,3494.4,3492.9,0.568]
[1718972067158,0.29885911,3494.4,3492.8,3.0]
[1718972067159,2.08197188,3494.3,3493.0,0.6248]
[1718972067376,0.29885911,3494.4,3493.2,2.68]
[1718972067559,0.29885911,3494.4,3493.3,3.33048]
[1718972068057,0.29885911,3494.4,3493.5,1.716]
[1718972068257,0.29885911,3494.4,3493.6,2.266]
[1718972068471,2.08181511,3494.3,3493.6,1.716]
[1718972068675,2.08181511,3494.3,3493.7,0.7766]
[1718972069169,0.29885911,3494.4,3493.8,1.716]
[1718972069394,2.11267055,3494.7,3493.8,1.716]
[1718972069556,2.08182166,3494.6,3493.8,1.716]
[1718972070230,2.08182166,3494.6,3493.7,0.7766]
[1718972070433,2.08182166,3494.6,3493.7,0.55]
[1718972070631,0.75,3494.4,3493.3,6.05755547]
[1718972070861,2.08182166,3494.3,3493.4,0.55]
[1718972071277,2.08182166,3494.3,3493.4,2.266]
[1718972071446,2.08182166,3494.3,3493.5,0.83235555]
[1718972072277,0.75,3494.4,3493.5,0.83235555]
[1718972072863,0.75,3494.2,3493.5,0.83235555]
[1718972073064,0.80717237,3494.2,3493.5,0.83235555]
[1718972073277,1.36181211,3494.5,3493.3,6.05755547]
[1718972073278,0.75,3494.0,3493.3,6.05755547]
[1718972073587,5.68,3495.2,3493.3,6.05755547]
[1718972073588,0.75,3493.8,3493.3,6.05755547]
[1718972073793,0.05717237,3493.7,3493.3,5.72707547]
[1718972073944,0.05717237,3493.7,3492.9,3.0521]
[1718972074140,0.05717237,3493.7,3493.4,0.02590791]
[1718972074379,0.05717237,3493.7,3492.9,3.0521]
[1718972074549,0.05717237,3493.7,3493.5,0.02590791]
[1718972074745,0.05717237,3493.7,3493.0,1.04951755]
[1718972074941,0.80717237,3493.8,3493.6,0.02590791]
[1718972075177,0.80717237,3493.8,3493.0,1.04951755]
[1718972075178,0.75,3493.8,3493.0,1.04951755]
[1718972075378,0.05717237,3493.7,3493.0,1.04951755]
[1718972075582,0.05717237,3493.7,3493.1,0.9828693]
[1718972075785,0.75,3493.3,3492.8,5.72707547]
[1718972076298,0.75,3493.1,3492.8,5.72707547]
[1718972076446,0.05717237,3493.0,3492.8,5.72707547]
[1718972076644,0.75,3492.9,3492.3,3.0521]
[1718972076868,0.75,3492.9,3492.4,0.87791755]
[1718972077592,0.75,3492.6,3492.2,5.72707547]
[1718972078390,0.75,3492.4,3492.2,5.72707547]
[1718972080285,0.75,3492.0,3491.0,1.716]
[1718972080491,0.75,3492.0,3491.1,0.05727626]
[1718972081097,0.75,3491.8,3490.7,2.3333]
[1718972081305,0.75,3491.8,3490.8,1.716]
[1718972083643,0.75,3490.2,3487.9,0.59405986]
[1718972083795,0.75,3490.2,3487.6,1.18811973]
[1718972083796,0.75,3488.9,3487.6,2.86]
[1718972083999,0.75,3489.1,3487.2,0.006]
[1718972084230,0.75,3489.7,3487.7,2.68]
[1718972084544,0.75,3489.2,3487.8,0.268]
[1718972084701,0.75,3489.6,3487.4,2.3753]
[1718972084896,0.75,3489.3,3487.4,4.0913]
[1718972085452,3.0,3490.5,3487.2,0.006]
[1718972085453,2.39107237,3489.2,3487.2,0.006]
[1718972085598,0.75,3488.2,3487.2,0.006]
[1718972085934,0.75,3488.2,3486.7,2.3753]
[1718972085935,0.05717237,3488.1,3486.7,1.8813]
[1718972086282,0.745,3488.2,3486.8,0.24962115]
[1718972086603,3.0,3489.1,3486.5,0.1209115]
[1718972086604,2.83108803,3488.1,3486.5,0.1209115]
[1718972086911,0.05717237,3488.6,3486.5,0.1209115]
[1718972086912,0.745,3487.8,3486.5,0.1209115]
[1718972087133,0.745,3487.6,3486.5,0.1209115]
[1718972087643,0.745,3488.1,3486.5,0.1209115]
[1718972087852,0.745,3488.5,3486.5,0.1209115]
[1718972088005,0.745,3488.9,3486.9,2.68]
[1718972088205,0.286,3490.4,3486.7,1.716]
[1718972088206,0.745,3489.1,3487.4,2.68]
[1718972088606,0.745,3489.6,3487.5,1.716]
[1718972088815,0.745,3489.6,3487.4,5.72707547]
[1718972088816,0.745,3490.2,3487.7,4.396]
[1718972089121,0.745,3489.9,3488.2,2.4041]
[1718972089318,0.745,3489.9,3488.3,1.53471755]
[1718972089618,0.745,3490.3,3488.3,1.53471755]
[1718972089821,0.745,3489.8,3488.3,1.53471755]
[1718972090120,0.745,3489.8,3488.4,0.39388176]
[1718972090341,0.745,3489.8,3488.5,0.55]
[1718972090933,0.745,3489.5,3488.4,0.39388176]